fUSD/lending_fUSD_20260112
["ID","MTS","AMOUNT","RATE_DAILY","PERIOD"]
[401412777,1768192249147,-151.0,0.00017595,2]
[401412778,1768192249157,-406.875021,0.00017595,2]
[401412779,1768192249166,-151.0,0.00017595,2]
[401412780,1768192249176,-151.0,0.00017595,2]
[401412781,1768192249186,-406.875021,0.00017595,2]
[401412782,1768192249195,-1767.548746,0.00017595,2]
[401412783,1768192249205,-501.106021,0.00017595,2]
[401412784,1768192249214,-1767.548746,0.00017595,2]
[401412785,1768192249223,-151.0,0.00017595,2]
[401412786,1768192249232,-402.021243,0.00017595,2]
[401412787,1768192249241,-501.106021,0.00017595,2]
[401412788,1768192249250,-151.0,0.00017595,2]
[401412789,1768192249260,-1767.548746,0.00017595,2]
[401412790,1768192249269,-151.0,0.00017595,2]
[401412791,1768192249278,-402.021243,0.00017595,2]
[401412792,1768192249287,-501.106021,0.00017595,2]
[401412793,1768192249296,-151.0,0.00017595,2]
[401412794,1768192249305,-1767.548746,0.00017595,2]
[401412795,1768192249313,-297.170586,0.00017595,2]
[401412796,1768192249323,-402.021243,0.00017595,2]
[401412797,1768192249332,-501.106021,0.00017595,2]
[401412798,1768192249341,-151.0,0.00017595,2]
[401412799,1768192249351,-283.03324,0.00017595,2]
[401412800,1768192249360,-297.170586,0.00017595,2]
[401412801,1768192249370,-151.0,0.00017595,2]
[401412802,1768192249380,-402.021243,0.00017595,2]
[401412803,1768192249390,-878.078272,0.00017595,2]
[401412804,1768192249401,-151.0,0.00017595,2]
[401412805,1768192249410,-297.170586,0.00017595,2]
[401412806,1768192249422,-151.0,0.00017595,2]
[401412807,1768192249431,-464.411102,0.00017595,2]
[401412808,1768192249441,-878.078272,0.00017595,2]
[401412809,1768192249451,-297.170586,0.00017595,2]
[401412810,1768192249461,-151.0,0.00017595,2]
[401412811,1768192249471,-283.642245,0.00017595,2]
[401412812,1768192249481,-464.411102,0.00017595,2]
[401412813,1768192249490,-878.078272,0.00017595,2]
[401412814,1768192249499,-151.0,0.00017595,2]
[401412815,1768192249508,-464.411102,0.00017595,2]
[401412816,1768192249518,-214.643691,0.00017595,2]
[401412817,1768192249529,-878.078272,0.00017595,2]
[401412818,1768192249540,-151.0,0.00017595,2]
[401412819,1768192249550,-464.411102,0.00017595,2]
[401412820,1768192249561,-214.643691,0.00017595,2]
[401412821,1768192249572,-214.643691,0.00017595,2]
[401412822,1768192249580,-1680.772685,0.00017595,2]
[401412823,1768192249591,-208.281146,0.00017595,2]
[401412824,1768192249600,-157.637598,0.00017595,2]
[401412825,1768192249609,-214.643691,0.00017595,2]
[401412826,1768192249618,-1680.772685,0.00017595,2]
[401412827,1768192249627,-208.281146,0.00017595,2]
[401412828,1768192249636,-157.637598,0.00017595,2]
[401412829,1768192249645,-2639.362255,0.00017595,2]
[401412830,1768192249654,-1680.772685,0.00017595,2]
[401412831,1768192249663,-208.281146,0.00017595,2]
[401412832,1768192249672,-157.637598,0.00017595,2]
[401412833,1768192249681,-2639.362255,0.00017595,2]
[401412834,1768192249689,-1680.772685,0.00017595,2]
[401412835,1768192249699,-897.996354,0.00017595,2]
[401412836,1768192249707,-208.281146,0.00017595,2]
[401412837,1768192249716,-151.0,0.00017595,2]
[401412838,1768192249725,-2139.417501,0.00017595,2]
[401412839,1768192249734,-157.637598,0.00017595,2]
[401412840,1768192249743,-2639.362255,0.00017595,2]
[401412841,1768192249752,-897.996354,0.00017595,2]
[401412842,1768192249761,-151.0,0.00017595,2]
[401412843,1768192249770,-2139.417501,0.00017595,2]
[401412844,1768192249782,-2639.362255,0.00017595,2]
[401412845,1768192249791,-897.996354,0.00017595,2]
[401412846,1768192249800,-151.0,0.00017595,2]
[401412847,1768192249810,-2139.417501,0.00017595,2]
[401412848,1768192249819,-151.0,0.00017595,2]
[401412849,1768192249829,-897.996354,0.00017595,2]
[401412850,1768192249839,-2139.417501,0.00017595,2]
[401412851,1768192249850,-2277.167351,0.00017595,2]
[401412852,1768192249861,-151.0,0.00017595,2]
[401412853,1768192249871,-2277.167351,0.00017595,2]
[401412854,1768192249882,-171.582681,0.00017595,2]
[401412855,1768192249892,-2277.167351,0.00017595,2]
[401412856,1768192249902,-2277.167351,0.00017595,2]
[401412857,1768192249912,-151.0,0.00017595,2]
[401412858,1768192249922,-151.0,0.00017595,2]
[401412859,1768192249932,-151.0,0.00017595,2]
[401412860,1768192249947,-151.0,0.00017595,2]
[401412861,1768192249958,-151.0,0.00017595,2]
[401412862,1768192249968,-291.883143,0.00017595,2]
[401412863,1768192249978,-151.0,0.00017595,2]
[401412864,1768192249987,-169.265713,0.00017595,2]
[401412865,1768192249998,-291.883143,0.00017595,2]
[401412866,1768192250008,-151.0,0.00017595,2]
[401412867,1768192250018,-291.883143,0.00017595,2]
[401412868,1768192250028,-151.0,0.00017595,2]
[401412869,1768192250038,-291.883143,0.00017595,2]
[401412870,1768192250047,-211.915832,0.00017595,2]
[401412871,1768192250057,-4431.472038,0.00017595,2]
[401412872,1768192250066,-156.283737,0.00017595,2]
[401412873,1768192250076,-211.915832,0.00017595,2]
[401412874,1768192250087,-2704.225356,0.00017595,2]
[401412875,1768192250096,-4431.472038,0.00017595,2]
[401412876,1768192250106,-1888.793769,0.00017595,2]
[401412877,1768192250115,-211.915832,0.00017595,2]
[401412878,1768192250125,-151.0,0.00017595,2]
[401412879,1768192250134,-2704.225356,0.00017595,2]
[401412880,1768192250143,-4431.472038,0.00017595,2]
[401412881,1768192250151,-1888.793769,0.00017595,2]
[401412882,1768192250160,-151.0,0.00017595,2]
[401412883,1768192250170,-151.0,0.00017595,2]
[401412884,1768192250181,-211.915832,0.00017595,2]
[401412885,1768192250190,-4431.472038,0.00017595,2]
[401412886,1768192250200,-1888.793769,0.00017595,2]
[401412887,1768192250209,-151.0,0.00017595,2]
[401412888,1768192250219,-151.0,0.00017595,2]
[401412889,1768192250229,-1888.793769,0.00017595,2]
[401412890,1768192250239,-151.0,0.00017595,2]
[401412891,1768192250248,-151.0,0.00017595,2]
[401412892,1768192250258,-200.139122,0.00017595,2]
[401412893,1768192250267,-2704.225356,0.00017595,2]
[401412894,1768192250276,-200.139122,0.00017595,2]
[401412895,1768192250285,-1668.181417,0.00017595,2]
[401412896,1768192250294,-182.10784,0.00017595,2]
[401412897,1768192250303,-151.0,0.00017595,2]
[401412898,1768192250313,-2704.225356,0.00017595,2]
[401412899,1768192250323,-200.139122,0.00017595,2]
[401412900,1768192250334,-182.10784,0.00017595,2]
[401412901,1768192250343,-1668.181417,0.00017595,2]
[401412902,1768192250354,-200.139122,0.00017595,2]
[401412903,1768192250364,-1668.181417,0.00017595,2]
[401412904,1768192250375,-182.10784,0.00017595,2]
[401412905,1768192250386,-210.611627,0.00017595,2]
[401412906,1768192250395,-279.689475,0.00017595,2]
[401412907,1768192250404,-1668.181417,0.00017595,2]
[401412908,1768192250413,-182.10784,0.00017595,2]
[401412909,1768192250423,-158018.86338473,0.00017595,2]
[401412910,1768192250433,-257050.49498623,0.00017595,2]
[401412911,1768192250443,-363032.01685708,0.00017595,2]
[401412912,1768192250454,-469755.7821,0.00017595,2]
[401412913,1768192250464,-1073.4,0.00017599,2]
[401412914,1768192250475,-350.68764993,0.000176,2]
[401412915,1768192250484,-1000.0,0.000176,2]
[401412916,1768192250495,-2400.0,0.000176,6]
[401412917,1768192250506,-150.0,0.00017614,2]
[401412918,1768192250515,-350.68764993,0.00017618,2]
[401412919,1768192250524,-500.52073568,0.00017621,2]
[401412920,1768192250535,-1001.98142269,0.00017621,2]
[401412921,1768192250544,-1000.0,0.00017621,2]
[401412922,1768192250553,-501.81552952,0.00017621,2]
[401412923,1768192250563,-604.83613644,0.00017621,2]
[401412924,1768192250572,-1002.68294103,0.00017621,2]
[401412925,1768192250581,-1001.39881462,0.00017621,2]
[401412926,1768192250591,-1000.0,0.00017621,2]
[401412927,1768192250600,-1002.11848052,0.00017621,2]
[401412928,1768192250610,-1000.0,0.00017621,2]
[401412929,1768192250619,-1000.0,0.00017621,2]
[401412930,1768192250628,-501.68963282,0.00017621,2]
[401412931,1768192250637,-1001.49774725,0.00017621,2]
[401412932,1768192250646,-1000.0,0.00017621,2]
[401412933,1768192250655,-1000.0,0.00017621,2]
[401412934,1768192250664,-502.50985622,0.00017621,2]
[401412935,1768192250673,-1000.0,0.00017621,2]
[401412936,1768192250682,-1000.0,0.00017621,2]
[401412937,1768192250691,-350.68764993,0.00017636,2]
[401412938,1768192250700,-150.0,0.0001764,2]
[401412939,1768192250709,-2526.34474309,0.0001764,2]
[401412940,1768192250718,-350.68764993,0.00017655,2]
[401412941,1768192250728,-1054.4366,0.00017667,2]
[401412942,1768192250736,-350.68764993,0.00017673,2]
[401412943,1768192250746,-843.0,0.0001768,2]
[401412944,1768192250757,-350.68764993,0.00017691,2]
[401412945,1768192250768,-154.087793,0.00017699,2]
[401412946,1768192250777,-500.0,0.00017699,2]
[401412947,1768192250790,-150.0,0.00017699,2]
[401412948,1768192250799,-150.0,0.00017699,2]
[401412949,1768192250808,-150.0,0.00017699,2]
[401412950,1768192250817,-500.0,0.00017699,2]
[401412951,1768192250827,-150.0,0.00017699,2]
[401412952,1768192250836,-150.0,0.00017699,2]
[401412953,1768192250846,-150.0,0.00017699,2]
[401412954,1768192250855,-1073.4,0.00017699,2]
[401412955,1768192250865,-1808.17008669,0.000177,2]
[401412956,1768192250874,-150.0,0.000177,2]
[401412957,1768192250883,-150.0,0.000177,2]
[401412958,1768192250893,-780.28325037,0.000177,2]
[401412959,1768192250902,-2400.0,0.000177,6]
[401412960,1768192250911,-403.0,0.000177,5]
[401412961,1768192250920,-1000.0,0.00017709,2]
[401412962,1768192250929,-350.68764993,0.00017709,2]
[401412963,1768192250939,-2987.79350316,0.00017717,2]
[401412964,1768192250949,-1252.0,0.00017721,2]
[401412965,1768192250959,-150.0,0.00017723,2]
[401412966,1768192250968,-1101.0,0.00017725,2]
[401412967,1768192250977,-350.68764993,0.00017727,2]
[401412968,1768192250987,-1000.0,0.00017733,2]
[401412969,1768192250996,-1000.0,0.00017737,2]
[401412970,1768192251007,-1000.0,0.0001774,2]
[401412971,1768192251017,-150.0,0.00017743,2]
[401412972,1768192251027,-1000.0,0.00017744,2]
[401412973,1768192251036,-350.68764993,0.00017745,2]
[401412974,1768192251045,-500.0,0.00017753,2]
[401412975,1768192251054,-500.0,0.00017754,2]
[401412976,1768192251063,-150.0,0.00017754,2]
[401412977,1768192251072,-150.0,0.00017754,2]
[401412978,1768192251081,-500.0,0.00017754,2]
[401412979,1768192251090,-150.0,0.00017754,2]
[401412980,1768192251099,-150.96535916,0.00017754,2]
[401412981,1768192251109,-150.0,0.00017754,2]
[401412982,1768192251120,-150.0,0.00017754,2]
[401412983,1768192251130,-1000.0,0.0001776,2]
[401412984,1768192251139,-1000.0,0.00017761,2]
[401412985,1768192251150,-350.68764993,0.00017764,2]
[401412986,1768192251160,-391.13971577,0.00017766,2]
[401412987,1768192251169,-150.0,0.00017775,2]
[401412988,1768192251179,-150.0,0.00017775,2]
[401412989,1768192251188,-191.78307443,0.00017775,2]
[401412990,1768192251197,-350.68764993,0.00017782,2]
[401412991,1768192251206,-1000.0,0.00017786,2]
[401412992,1768192251216,-708.0061728,0.00017787,2]
[401412993,1768192251225,-350.68764993,0.000178,2]
[401412994,1768192251236,-1073.4,0.000178,2]
[401412995,1768192251246,-14458.04141764,0.000178,2]
[401412996,1768192251257,-1000.0,0.000178,2]
[401412997,1768192251266,-2400.0,0.000178,6]
[401412998,1768192251275,-1000.0,0.00017804,2]
[401412999,1768192251284,-1000.0,0.00017807,2]
[401413000,1768192251294,-1000.0,0.00017807,2]
[401413001,1768192251305,-156.587,0.00017807,2]
[401413002,1768192251315,-150.67981664,0.00017808,2]
[401413003,1768192251324,-252.87382707,0.00017809,2]
[401413004,1768192251335,-150.0,0.00017809,2]
[401413005,1768192251347,-150.0,0.00017809,2]
[401413006,1768192251356,-282.10315697,0.00017809,2]
[401413007,1768192251366,-150.0,0.00017809,2]
[401413008,1768192251375,-160.92556746,0.00017809,2]
[401413009,1768192251386,-204.15967263,0.00017809,2]
[401413010,1768192251397,-1000.0,0.00017809,2]
[401413011,1768192251409,-350.68764993,0.00017818,2]
[401413012,1768192251419,-1000.0,0.00017819,2]
[401413013,1768192251430,-150.0,0.0001782,2]
[401413014,1768192251441,-385.31676,0.0001782,2]
[401413015,1768192251450,-385.31676,0.0001782,2]
[401413016,1768192251459,-910.24842296,0.0001782,2]
[401413017,1768192251468,-1046.89,0.00017822,2]
[401413018,1768192251476,-1000.0,0.00017823,2]
[401413019,1768192251486,-1000.0,0.00017825,2]
[401413020,1768192251494,-1000.0,0.00017825,2]
[401413021,1768192251504,-1000.0,0.00017827,2]
[401413022,1768192251513,-25000.0,0.0001783,3]
[401413023,1768192251522,-83171.52894996,0.0001783,2]
[401413024,1768192251531,-1000.0,0.0001783,2]
[401413025,1768192251541,-385.31676,0.0001783,2]
[401413026,1768192251550,-350.68764993,0.00017836,2]
[401413027,1768192251560,-25000.0,0.00017838,3]
[401413028,1768192251569,-500.0,0.00017846,2]
[401413029,1768192251578,-1000.0,0.00017846,2]
[401413030,1768192251587,-25000.0,0.00017847,3]
[401413031,1768192251596,-150.0,0.0001785,2]
[401413032,1768192251605,-1000.0,0.00017853,2]
[401413033,1768192251614,-350.68764993,0.00017855,2]
[401413034,1768192251623,-200.0,0.00017855,2]
[401413035,1768192251632,-25000.0,0.00017856,3]
[401413036,1768192251641,-200.0,0.00017856,2]
[401413037,1768192251650,-1000.0,0.00017858,2]
[401413038,1768192251659,-1000.0,0.00017859,2]
[401413039,1768192251669,-385.31676,0.0001786,2]
[401413040,1768192251678,-150.0,0.00017862,2]
[401413041,1768192251687,-152.14276638,0.00017862,2]
[401413042,1768192251696,-202.62137386,0.00017863,2]
[401413043,1768192251705,-150.0,0.00017863,2]
[401413044,1768192251714,-296.09401039,0.00017863,2]
[401413045,1768192251724,-1000.0,0.00017864,2]
[401413046,1768192251733,-25000.0,0.00017865,3]
[401413047,1768192251744,-1000.0,0.00017868,2]
[401413048,1768192251755,-1000.0,0.00017871,2]
[401413049,1768192251764,-150.0,0.00017871,2]
[401413050,1768192251776,-350.68764993,0.00017873,2]
[401413051,1768192251788,-1046.89,0.00017873,2]
[401413052,1768192251798,-25000.0,0.00017874,3]
[401413053,1768192251807,-1000.0,0.00017876,2]
[401413054,1768192251816,-1000.0,0.00017877,2]
[401413055,1768192251826,-385.31677,0.0001788,2]
[401413056,1768192251835,-25000.0,0.00017882,3]
[401413057,1768192251844,-1000.0,0.00017885,2]
[401413058,1768192251855,-1000.0,0.00017886,2]
[401413059,1768192251864,-1000.0,0.0001789,2]
[401413060,1768192251873,-1000.0,0.0001789,2]
[401413061,1768192252003,-350.68764993,0.00017891,2]
[401413062,1768192252013,-25000.0,0.00017891,3]
[401413063,1768192252023,-1000.0,0.00017895,2]
[401413064,1768192252034,-1000.0,0.00017897,2]
[401413065,1768192252043,-500.0,0.00017899,2]
[401413066,1768192252053,-500.0,0.00017899,2]
[401413067,1768192252063,-551.14146089,0.00017899,2]
[401413068,1768192252073,-500.0,0.00017899,2]
[401413069,1768192252084,-25000.0,0.000179,3]
[401413070,1768192252094,-1073.4,0.000179,2]
[401413071,1768192252103,-317.89217191,0.000179,2]
[401413072,1768192252113,-1285.44359573,0.000179,2]
[401413073,1768192252124,-1285.44359573,0.000179,2]
[401413074,1768192252133,-1285.44359573,0.000179,2]
[401413075,1768192252143,-1285.44359573,0.000179,2]
[401413076,1768192252152,-1285.44359573,0.000179,2]
[401413077,1768192252162,-1285.44359573,0.000179,2]
[401413078,1768192252171,-1285.44359573,0.000179,2]
[401413079,1768192252181,-1285.44359573,0.000179,2]
[401413080,1768192252191,-1285.44359573,0.000179,2]
[401413081,1768192252200,-1285.44359573,0.000179,2]
[401413082,1768192252211,-2738.0,0.000179,6]
[401413083,1768192252221,-1285.44359573,0.000179,2]
[401413084,1768192252230,-1285.44359573,0.000179,2]
[401413085,1768192252240,-1285.44359573,0.000179,2]
[401413086,1768192252250,-1285.44359573,0.000179,2]
[401413087,1768192252260,-14713.25544062,0.000179,2]
[401413088,1768192252269,-1285.44359573,0.000179,2]
[401413089,1768192252278,-1285.44359573,0.000179,2]
[401413090,1768192252287,-1285.44359573,0.000179,2]
[401413091,1768192252297,-1285.44359573,0.000179,2]
[401413092,1768192252308,-1808.17008669,0.000179,2]
[401413093,1768192252317,-936.76429918,0.000179,2]
[401413094,1768192252327,-2987.79350316,0.000179,2]
[401413095,1768192252336,-8079.0,0.000179,2]
[401413096,1768192252346,-1000.0,0.00017902,2]
[401413097,1768192252358,-350.68764993,0.00017909,2]
[401413098,1768192252369,-385.31676,0.0001791,2]
[401413099,1768192252379,-1000.0,0.00017914,2]
[401413100,1768192252390,-1000.0,0.00017917,2]
[401413101,1768192252401,-150.0,0.00017918,2]
[401413102,1768192252411,-350.68764993,0.00017927,2]
[401413103,1768192252422,-1000.0,0.00017938,2]
[401413104,1768192252432,-1777.0,0.00017942,2]
[401413105,1768192252442,-350.68764993,0.00017945,2]
[401413106,1768192252453,-1000.0,0.00017952,2]
[401413107,1768192252463,-1777.0,0.00017952,2]
[401413108,1768192252472,-350.68764993,0.00017964,2]
[401413109,1768192252483,-498.39272947,0.00017973,2]
[401413110,1768192252494,-500.0,0.00017973,2]
[401413111,1768192252506,-501.12911319,0.00017973,2]
[401413112,1768192252516,-501.38258594,0.00017973,2]
[401413113,1768192252526,-501.10571804,0.00017973,2]
[401413114,1768192252538,-515.69548792,0.00017973,2]
[401413115,1768192252548,-381.34584895,0.00017973,2]
[401413116,1768192252558,-500.0,0.00017973,2]
[401413117,1768192252568,-501.47661499,0.00017973,2]
[401413118,1768192252581,-644.05438872,0.00017973,2]
[401413119,1768192252593,-502.23302881,0.00017973,2]
[401413120,1768192252605,-503.67264874,0.00017973,2]
[401413121,1768192252615,-500.55153068,0.00017973,2]
[401413122,1768192252627,-500.0,0.00017973,2]
[401413123,1768192252636,-503.85916191,0.00017973,2]
[401413124,1768192252647,-501.78685961,0.00017973,2]
[401413125,1768192252656,-500.0,0.00017973,2]
[401413126,1768192252666,-502.86808452,0.00017973,2]
[401413127,1768192252676,-500.0,0.00017973,2]
[401413128,1768192252687,-178.73,0.00017973,2]
[401413129,1768192252698,-153.49935164,0.00017973,2]
[401413130,1768192252709,-506.0,0.0001798,2]
[401413131,1768192252719,-1267.0,0.0001798,2]
[401413132,1768192252729,-914.0,0.0001798,2]
[401413133,1768192252740,-1201.0,0.0001798,2]
[401413134,1768192252752,-614.0,0.0001798,2]
[401413135,1768192252762,-1330.0,0.0001798,2]
[401413136,1768192252772,-350.68764993,0.00017982,2]
[401413137,1768192252785,-500.0,0.00017982,2]
[401413138,1768192252795,-152.92662848,0.00017982,2]
[401413139,1768192252804,-3468.9206082,0.00017988,2]
[401413140,1768192252814,-151.179024,0.00017988,2]
[401413141,1768192252825,-151.0,0.00017988,2]
[401413142,1768192252834,-151.179024,0.00017988,2]
[401413143,1768192252844,-151.179024,0.00017988,2]
[401413144,1768192252854,-151.179024,0.00017988,2]
[401413145,1768192252864,-268.281214,0.00017988,2]
[401413146,1768192252873,-151.0,0.00017988,2]
[401413147,1768192252883,-151.0,0.00017988,2]
[401413148,1768192252892,-151.0,0.00017988,2]
[401413149,1768192252901,-151.0,0.00017988,2]
[401413150,1768192252910,-151.0,0.00017988,2]
[401413151,1768192252919,-151.0,0.00017988,2]
[401413152,1768192252929,-151.0,0.00017988,2]
[401413153,1768192252939,-633.878372,0.00017988,2]
[401413154,1768192252948,-633.878372,0.00017988,2]
[401413155,1768192252959,-633.878372,0.00017988,2]
[401413156,1768192252969,-633.878372,0.00017988,2]
[401413157,1768192252979,-151.0,0.00017988,2]
[401413158,1768192252989,-151.0,0.00017988,2]
[401413159,1768192253000,-205.617131,0.00017988,2]
[401413160,1768192253010,-1856.57725944,0.0001799,2]
[401413161,1768192253020,-1047.04298225,0.0001799,2]
[401413162,1768192253030,-1000.0,0.00017993,2]
[401413163,1768192253040,-663.93287602,0.00017993,2]
[401413164,1768192253050,-857.39859615,0.00017998,2]
[401413165,1768192253059,-1046.89,0.00017998,2]
[401413166,1768192253069,-1046.89,0.00017998,2]
[401413167,1768192253079,-1972.79917298,0.00017999,2]
[401413168,1768192253088,-6478.23565516,0.00017999,2]
[401413169,1768192253098,-28294.07427315,0.00017999,4]
[401413170,1768192253107,-1110.78417922,0.00017999,5]
[401413171,1768192253117,-1110.78417922,0.00017999,5]
[401413172,1768192253127,-1110.78417922,0.00017999,5]
[401413173,1768192253137,-1110.78417923,0.00017999,5]
[401413174,1768192253146,-300.0,0.00017999,2]
[401413175,1768192253156,-500.0,0.00017999,2]
[401413176,1768192253166,-500.0,0.00017999,2]
[401413177,1768192253175,-500.0,0.00017999,2]
[401413178,1768192253184,-500.0,0.00017999,2]
[401413179,1768192253194,-500.0,0.00017999,2]
[401413180,1768192253203,-500.0,0.00017999,2]
[401413181,1768192253214,-456.07319796,0.00017999,2]
[401413182,1768192253223,-126998.22400674,0.00017999,2]
[401413183,1768192253233,-300.0,0.00017999,2]
[401413184,1768192253243,-670.95106238,0.00017999,2]
[401413185,1768192253253,-151.0,0.00017999,2]
[401413186,1768192253263,-151.0,0.00017999,2]
[401413187,1768192253273,-151.0,0.00017999,2]
[401413188,1768192253283,-151.0,0.00017999,2]
[401413189,1768192253293,-151.0,0.00017999,2]
[401413190,1768192253303,-151.0,0.00017999,2]
[401413191,1768192253313,-151.0,0.00017999,2]
[401413192,1768192253323,-1286.81811,0.00017999,2]
[401413193,1768192253333,-177.383743,0.00017999,2]
[401413194,1768192253343,-151.0,0.00017999,2]
[401413195,1768192253353,-1286.81811,0.00017999,2]
[401413196,1768192253363,-151.0,0.00017999,2]
[401413197,1768192253373,-1286.81811,0.00017999,2]
[401413198,1768192253383,-151.0,0.00017999,2]
[401413199,1768192253392,-1286.81811,0.00017999,2]
[401413200,1768192253402,-151.0,0.00017999,2]
[401413201,1768192253412,-151.0,0.00017999,2]
[401413202,1768192253421,-151.0,0.00017999,2]
[401413203,1768192253431,-151.0,0.00017999,2]
[401413204,1768192253442,-151.0,0.00017999,2]
[401413205,1768192253451,-151.0,0.00017999,2]
[401413206,1768192253461,-151.0,0.00017999,2]
[401413207,1768192253470,-151.0,0.00017999,2]
[401413208,1768192253479,-151.0,0.00017999,2]
[401413209,1768192253489,-151.0,0.00017999,2]
[401413210,1768192253499,-151.0,0.00017999,2]
[401413211,1768192253509,-151.0,0.00017999,2]
[401413212,1768192253519,-151.0,0.00017999,2]
[401413213,1768192253529,-170.178937,0.00017999,2]
[401413214,1768192253539,-170.178937,0.00017999,2]
[401413215,1768192253548,-170.178937,0.00017999,2]
[401413216,1768192253557,-363.473571,0.00017999,2]
[401413217,1768192253567,-170.178937,0.00017999,2]
[401413218,1768192253577,-151.0,0.00017999,2]
[401413219,1768192253586,-363.473571,0.00017999,2]
[401413220,1768192253595,-151.0,0.00017999,2]
[401413221,1768192253604,-151.0,0.00017999,2]
[401413222,1768192253614,-363.473571,0.00017999,2]
[401413223,1768192253623,-151.0,0.00017999,2]
[401413224,1768192253633,-363.473571,0.00017999,2]
[401413225,1768192253643,-151.0,0.00017999,2]
[401413226,1768192253653,-151.0,0.00017999,2]
[401413227,1768192253663,-151.0,0.00017999,2]
[401413228,1768192253673,-196.896396,0.00017999,2]
[401413229,1768192253683,-196.896396,0.00017999,2]
[401413230,1768192253692,-196.896396,0.00017999,2]
[401413231,1768192253702,-196.896396,0.00017999,2]
[401413232,1768192253712,-447.762061,0.00017999,2]
[401413233,1768192253722,-151.0,0.00017999,2]
[401413234,1768192253732,-447.762061,0.00017999,2]
[401413235,1768192253742,-151.0,0.00017999,2]
[401413236,1768192253751,-447.762061,0.00017999,2]
[401413237,1768192253761,-151.0,0.00017999,2]
[401413238,1768192253770,-447.762061,0.00017999,2]
[401413239,1768192253782,-151.0,0.00017999,2]
[401413240,1768192253792,-871.95212,0.00017999,2]
[401413241,1768192253801,-347.602439,0.00017999,2]
[401413242,1768192253811,-871.95212,0.00017999,2]
[401413243,1768192253821,-151.0,0.00017999,2]
[401413244,1768192253831,-871.95212,0.00017999,2]
[401413245,1768192253841,-347.602439,0.00017999,2]
[401413246,1768192253851,-347.602439,0.00017999,2]
[401413247,1768192253860,-871.95212,0.00017999,2]
[401413248,1768192253870,-347.602439,0.00017999,2]
[401413249,1768192253880,-151.0,0.00017999,2]
[401413250,1768192253890,-244.502146,0.00017999,2]
[401413251,1768192253900,-244.502146,0.00017999,2]
[401413252,1768192253909,-244.502146,0.00017999,2]
[401413253,1768192253919,-244.502146,0.00017999,2]
[401413254,1768192253928,-736.421096,0.00017999,2]
[401413255,1768192253938,-736.421096,0.00017999,2]
[401413256,1768192253948,-736.421096,0.00017999,2]
[401413257,1768192253957,-736.421096,0.00017999,2]
[401413258,1768192253973,-151.0,0.00017999,2]
[401413259,1768192253982,-151.0,0.00017999,2]
[401413260,1768192253992,-151.0,0.00017999,2]
[401413261,1768192254002,-300.0,0.00017999,2]
[401413262,1768192254012,-666.0,0.00017999,2]
[401413263,1768192254022,-151.0,0.00017999,2]
[401413264,1768192254032,-151.0,0.00017999,2]
[401413265,1768192254042,-500.0,0.00017999,2]
[401413266,1768192254052,-500.0,0.00017999,2]
[401413267,1768192254062,-151.0,0.00017999,2]
[401413268,1768192254072,-510.98377513,0.00017999,2]
[401413269,1768192254082,-151.0,0.00017999,2]
[401413270,1768192254092,-151.0,0.00017999,2]
[401413271,1768192254102,-151.0,0.00017999,2]
[401413272,1768192254112,-151.0,0.00017999,2]
[401413273,1768192254121,-199.646617,0.00017999,2]
[401413274,1768192254131,-199.646617,0.00017999,2]
[401413275,1768192254140,-151.0,0.00017999,2]
[401413276,1768192254450,-199.646617,0.00017999,2]